fUSD/lending_fUSD_20240426
["ID","MTS","AMOUNT","RATE_DAILY","PERIOD"]
[323617471,1714137034538,-151.59715877,0.00011696,2]
[323617472,1714137034549,-458.1612689,0.00011696,2]
[323617473,1714137034559,-507.70933141,0.00011696,2]
[323617474,1714137034568,-500.0,0.00011696,2]
[323617475,1714137034578,-497.55248963,0.00011696,2]
[323617476,1714137034588,-500.0,0.00011696,2]
[323617477,1714137034598,-500.0,0.00011696,2]
[323617478,1714137034608,-91.55832067,0.00011696,2]
[323617479,1714137034628,-353.56000911,0.00011696,2]
[323617480,1714137034640,-4596.39129777,0.00011696,2]
[323617481,1714137034652,-689.71401106,0.00011696,2]
[323617482,1714137034672,-651.08581171,0.00011696,2]
[323617483,1714137034683,-650.44799404,0.00011696,2]
[323617484,1714137034695,-1673.69255564,0.00011696,2]
[323617485,1714137034705,-500.0,0.00011696,2]
[323617486,1714137034716,-500.0,0.00011696,2]
[323617487,1714137034725,-501.70134582,0.00011696,2]
[323617488,1714137034735,-500.0,0.00011696,2]
[323617489,1714137034746,-500.0,0.00011696,2]
[323617490,1714137034755,-500.0,0.00011696,2]
[323617491,1714137034765,-500.0,0.00011696,2]
[323617492,1714137034774,-500.0,0.00011696,2]
[323617493,1714137034783,-565.9262931,0.00011696,2]
[323617494,1714137034814,-173.5737069,0.00011696,2]
[323617495,1714137034823,-500.0,0.00011696,2]
[323617496,1714137034834,-176.4262931,0.00011696,2]
[323617497,1714137035177,-323.5737069,0.00011696,2]
[323617498,1714137035187,-279.73226517,0.00011696,2]
[323617499,1714137035198,-500.0,0.00011696,2]
[323617500,1714137035209,-94.11950962,0.00011696,2]
[323617501,1714137035223,-405.88049038,0.00011696,2]
[323617502,1714137035233,-629.47,0.00011696,2]
[323617503,1714137035243,-500.0,0.00011696,2]
[323617504,1714137035252,-500.0,0.00011696,2]
[323617505,1714137035261,-500.0,0.00011696,2]
[323617506,1714137035271,-777.89,0.00011696,2]
[323617507,1714137035281,-500.0,0.00011696,2]
[323617508,1714137035291,-689.56,0.00011696,2]
[323617509,1714137035300,-603.06,0.00011696,2]
[323617510,1714137035309,-500.0,0.00011696,2]
[323617511,1714137035319,-500.0,0.00011696,2]
[323617512,1714137035328,-500.0,0.00011696,2]
[323617513,1714137035338,-500.0,0.00011696,2]
[323617514,1714137035348,-500.0,0.00011696,2]
[323617515,1714137035357,-500.0,0.00011696,2]
[323617516,1714137035367,-500.0,0.00011696,2]
[323617517,1714137035377,-789.35,0.00011696,2]
[323617518,1714137035387,-2861.72,0.00011696,2]
[323617519,1714137035397,-500.0,0.00011696,2]
[323617520,1714137035407,-162.09194774,0.00011696,2]
[323617521,1714137035419,-296.56490409,0.00011696,2]
[323617539,1714137037954,-558.55215236,0.00011553,2]
[323617541,1714137037965,-5350.7455238,0.00011553,2]
[323617544,1714137037977,-1205.12314817,0.00011696,2]
[323617545,1714137037986,-1691.0,0.00011696,2]
[323617547,1714137037995,-500.0,0.00011696,2]
[323617549,1714137038004,-500.0,0.00011696,2]
[323617551,1714137038014,-500.0,0.00011696,2]
[323617553,1714137038023,-1123.22,0.00011696,2]
[323617555,1714137038033,-512.17,0.00011696,2]
[323617557,1714137038042,-500.0,0.00011696,2]
[323617559,1714137038051,-14368.21,0.00011696,2]
[323617560,1714137038061,-500.0,0.00011696,2]
[323617561,1714137038071,-442.27087782,0.00011696,2]
[323617562,1714137038080,-500.0,0.00011696,2]
[323617563,1714137038090,-500.0,0.00011696,2]
[323617564,1714137038099,-500.0,0.00011696,2]
[323617565,1714137038108,-500.0,0.00011696,2]
[323617566,1714137038117,-500.0,0.00011696,2]
[323617567,1714137038127,-500.0,0.00011696,2]
[323617568,1714137038136,-500.0,0.00011696,2]
[323617569,1714137038146,-503.46034877,0.00011696,2]
[323617570,1714137038155,-500.0,0.00011696,2]
[323617571,1714137038164,-500.0,0.00011696,2]
[323617572,1714137038173,-1246.47,0.00011696,2]
[323617573,1714137038183,-537.04,0.00011696,2]
[323617574,1714137038193,-500.0,0.00011696,2]
[323617575,1714137038205,-500.0,0.00011696,2]
[323617576,1714137038215,-500.0,0.00011696,2]
[323617577,1714137038226,-900.66,0.00011696,2]
[323617578,1714137038235,-500.0,0.00011696,2]
[323617579,1714137038246,-500.0,0.00011696,2]
[323617580,1714137038257,-500.0,0.00011696,2]
[323617581,1714137038266,-500.0,0.00011696,2]
[323617582,1714137038275,-500.0,0.00011696,2]
[323617583,1714137038285,-1000.0,0.00011697,2]
[323617584,1714137038294,-4439.13750787,0.00011697,2]
[323617586,1714137038306,-6667.3,0.00011697,2]
[323617588,1714137038317,-3757.48353988,0.00011697,2]
[323617590,1714137038329,-124552.99625225,0.00011697,2]
[323617592,1714137038339,-88420.7276,0.00011697,2]
[323617594,1714137038348,-194.07964525,0.00011697,2]
[323617596,1714137038357,-210.0,0.0001178,2]
[323617598,1714137038366,-880.65,0.00011796,2]
[323617600,1714137038376,-1086.73,0.00011796,2]
[323617602,1714137038385,-500.0,0.00011797,2]
[323617604,1714137038395,-500.0,0.00011797,2]
[323617606,1714137038405,-342.17417187,0.00011797,2]
[323617608,1714137038414,-500.0,0.00011797,2]
[323617610,1714137038423,-500.0,0.00011797,2]
[323617612,1714137038433,-245.13698382,0.00011797,2]
[323617614,1714137038442,-500.0,0.00011797,2]
[323617616,1714137038451,-500.0,0.00011797,2]
[323617618,1714137038460,-500.0,0.00011797,2]
[323617619,1714137038471,-500.0,0.00011797,2]
[323617620,1714137038480,-500.0,0.00011797,2]
[323617622,1714137038489,-500.0,0.00011797,2]
[323617624,1714137038498,-500.0,0.00011797,2]
[323617626,1714137038507,-500.0,0.00011797,2]
[323617628,1714137038516,-500.0,0.00011797,2]
[323617630,1714137038525,-500.0,0.00011797,2]
[323617632,1714137038534,-500.0,0.00011797,2]
[323617634,1714137038542,-500.0,0.00011797,2]
[323617636,1714137038552,-500.0,0.00011797,2]
[323617637,1714137038561,-544.86759139,0.00011797,2]
[323617638,1714137038570,-603.26303058,0.00011797,2]
[323617639,1714137038579,-500.0,0.00011797,2]
[323617640,1714137038589,-500.0,0.00011797,2]
[323617641,1714137038598,-500.0,0.00011797,2]
[323617642,1714137038607,-500.0,0.00011797,2]
[323617643,1714137038616,-500.0,0.00011797,2]
[323617644,1714137038625,-500.0,0.00011797,2]
[323617645,1714137038635,-500.0,0.00011797,2]
[323617646,1714137038643,-507.39220919,0.00011797,2]
[323617647,1714137038653,-335.21284735,0.00011797,2]
[323617648,1714137038662,-500.0,0.00011797,2]
[323617649,1714137038671,-500.0,0.00011797,2]
[323617650,1714137038680,-500.0,0.00011797,2]
[323617651,1714137038689,-500.0,0.00011797,2]
[323617652,1714137038698,-287.79547318,0.00011797,2]
[323617653,1714137038707,-500.0,0.00011797,2]
[323617654,1714137038717,-779.99,0.00011797,2]
[323617655,1714137038727,-500.0,0.00011797,2]
[323617656,1714137038736,-500.0,0.00011797,2]
[323617657,1714137038745,-500.0,0.00011797,2]
[323617658,1714137038754,-503.59785275,0.00011797,2]
[323617659,1714137038763,-500.0,0.00011797,2]
[323617660,1714137038774,-500.0,0.00011797,2]
[323617661,1714137038785,-500.0,0.00011797,2]
[323617662,1714137038794,-500.0,0.00011797,2]
[323617663,1714137038803,-500.0,0.00011797,2]
[323617664,1714137038813,-500.0,0.00011797,2]
[323617665,1714137038822,-610.52228659,0.00011797,2]
[323617666,1714137038832,-500.0,0.00011797,2]
[323617667,1714137038841,-500.0,0.00011797,2]
[323617668,1714137038850,-500.0,0.00011797,2]
[323617669,1714137038859,-500.0,0.00011797,2]
[323617670,1714137038869,-500.0,0.00011797,2]
[323617671,1714137038879,-502.31900163,0.00011797,2]
[323617672,1714137038888,-500.0,0.00011797,2]
[323617673,1714137038898,-500.0,0.00011797,2]
[323617674,1714137038906,-500.0,0.00011797,2]
[323617675,1714137038915,-500.0,0.00011797,2]
[323617676,1714137038924,-500.0,0.00011797,2]
[323617677,1714137038933,-500.0,0.00011797,2]
[323617678,1714137038942,-502.94102865,0.00011797,2]
[323617679,1714137038950,-534.25,0.00011797,2]
[323617680,1714137038959,-501.90167284,0.00011797,2]
[323617681,1714137038968,-500.0,0.00011797,2]
[323617682,1714137038977,-500.0,0.00011797,2]
[323617683,1714137038986,-500.0,0.00011797,2]
[323617684,1714137038995,-500.0,0.00011797,2]
[323617685,1714137039005,-500.0,0.00011797,2]
[323617686,1714137039014,-603.77,0.00011797,2]
[323617687,1714137039023,-500.0,0.00011797,2]
[323617688,1714137039032,-500.0,0.00011797,2]
[323617689,1714137039041,-500.0,0.00011797,2]
[323617690,1714137039050,-253.3468697,0.00011797,2]
[323617691,1714137039059,-500.0,0.00011797,2]
[323617692,1714137039069,-502.78256765,0.00011797,2]
[323617693,1714137039079,-1103.2,0.00011797,2]
[323617694,1714137039088,-500.0,0.00011797,2]
[323617695,1714137039097,-500.0,0.00011797,2]
[323617696,1714137039107,-500.0,0.00011797,2]
[323617697,1714137039116,-500.0,0.00011797,2]
[323617698,1714137039125,-556.19,0.00011797,2]
[323617699,1714137039134,-500.0,0.00011797,2]
[323617700,1714137039143,-500.0,0.00011797,2]
[323617701,1714137039153,-500.0,0.00011797,2]
[323617702,1714137039162,-500.0,0.00011797,2]
[323617703,1714137039171,-500.0,0.00011797,2]
[323617704,1714137039180,-855.82,0.00011797,2]
[323617705,1714137039190,-500.0,0.00011797,2]
[323617706,1714137039204,-500.0,0.00011797,2]
[323617707,1714137039214,-828.25,0.00011797,2]
[323617708,1714137039224,-500.0,0.00011797,2]
[323617709,1714137039234,-500.0,0.00011797,2]
[323617710,1714137039244,-502.33257449,0.00011797,2]
[323617711,1714137039254,-500.0,0.00011797,2]
[323617712,1714137039264,-500.0,0.00011797,2]
[323617713,1714137039273,-500.0,0.00011797,2]
[323617714,1714137039284,-734.36,0.00011797,2]
[323617715,1714137039294,-500.0,0.00011797,2]
[323617716,1714137039303,-653.58,0.00011797,2]
[323617717,1714137039313,-500.0,0.00011797,2]
[323617718,1714137039323,-500.0,0.00011797,2]
[323617719,1714137039332,-500.0,0.00011797,2]
[323617720,1714137039341,-500.0,0.00011797,2]
[323617721,1714137039351,-500.0,0.00011797,2]
[323617722,1714137039361,-500.0,0.00011797,2]
[323617723,1714137039371,-500.0,0.00011797,2]
[323617724,1714137039380,-500.0,0.00011797,2]
[323617725,1714137039390,-500.0,0.00011797,2]
[323617726,1714137039400,-500.0,0.00011797,2]
[323617727,1714137039409,-503.26510192,0.00011797,2]
[323617728,1714137039419,-500.0,0.00011797,2]
[323617729,1714137039430,-855.34,0.00011797,2]
[323617730,1714137039439,-500.0,0.00011797,2]
[323617731,1714137039448,-500.0,0.00011797,2]
[323617732,1714137039458,-500.0,0.00011797,2]
[323617733,1714137039468,-500.0,0.00011797,2]
[323617734,1714137039479,-607.27,0.00011797,2]
[323617735,1714137039488,-500.0,0.00011797,2]
[323617736,1714137039498,-500.0,0.00011797,2]
[323617737,1714137039508,-500.0,0.00011797,2]
[323617738,1714137039517,-500.0,0.00011797,2]
[323617739,1714137039526,-500.0,0.00011797,2]
[323617740,1714137039535,-500.0,0.00011797,2]
[323617741,1714137039545,-500.0,0.00011797,2]
[323617742,1714137039553,-500.0,0.00011797,2]
[323617743,1714137039563,-500.0,0.00011797,2]
[323617744,1714137039572,-500.0,0.00011797,2]
[323617745,1714137039581,-400.0,0.00011797,2]
[323617746,1714137039590,-500.0,0.00011797,2]
[323617747,1714137039600,-979.51,0.00011797,2]
[323617748,1714137039609,-500.0,0.00011797,2]
[323617754,1714137039828,-500.0,0.00011797,2]
[323617755,1714137039840,-500.0,0.00011797,2]
[323617756,1714137039849,-500.0,0.00011797,2]
[323617757,1714137039858,-500.0,0.00011797,2]
[323617759,1714137039867,-500.0,0.00011797,2]
[323617761,1714137039876,-500.0,0.00011797,2]
[323617763,1714137039885,-500.0,0.00011797,2]
[323617765,1714137039893,-500.0,0.00011797,2]
[323617767,1714137039902,-504.51748972,0.00011797,2]
[323617769,1714137039911,-502.15698598,0.00011797,2]
[323617771,1714137039920,-500.0,0.00011797,2]
[323617773,1714137039929,-617.28704019,0.00011797,2]
[323617774,1714137039939,-500.0,0.00011797,2]
[323617776,1714137039948,-500.0,0.00011797,2]
[323617778,1714137039958,-500.0,0.00011797,2]
[323617780,1714137039967,-500.0,0.00011797,2]
[323617782,1714137039979,-1094.13,0.00011797,2]
[323617784,1714137039988,-563.88,0.00011797,2]
[323617786,1714137039997,-500.0,0.00011797,2]
[323617788,1714137040007,-500.0,0.00011797,2]
[323617790,1714137040017,-500.0,0.00011797,2]
[323617791,1714137040026,-500.0,0.00011797,2]
[323617792,1714137040035,-500.0,0.00011797,2]
[323617793,1714137040044,-593.76867153,0.00011797,2]
[323617794,1714137040053,-562.04,0.00011797,2]
[323617795,1714137040062,-171.68353161,0.00011797,2]
[323617796,1714137040071,-502.71032242,0.00011797,2]
[323617797,1714137040081,-500.0,0.00011797,2]
[323617798,1714137040090,-500.0,0.00011797,2]
[323617799,1714137040099,-349.76025963,0.00011797,2]
[323617800,1714137040109,-500.0,0.00011797,2]
[323617801,1714137040118,-500.0,0.00011797,2]
[323617802,1714137040128,-500.0,0.00011797,2]
[323617803,1714137040139,-500.0,0.00011797,2]
[323617804,1714137040148,-500.0,0.00011797,2]
[323617805,1714137040158,-579.46481497,0.00011797,2]
[323617806,1714137040167,-500.67767276,0.00011797,2]
[323617807,1714137040178,-503.68428005,0.00011797,2]
[323617808,1714137040187,-500.0,0.00011797,2]
[323617809,1714137040197,-500.0,0.00011797,2]
[323617810,1714137040212,-504.00269152,0.00011797,2]
[323617811,1714137040221,-500.0,0.00011797,2]
[323617812,1714137040233,-500.0,0.00011797,2]
[323617813,1714137040242,-500.0,0.00011797,2]
[323617814,1714137040252,-500.0,0.00011797,2]
[323617815,1714137040262,-542.7010503,0.00011797,2]
[323617816,1714137040271,-500.0,0.00011797,2]
[323617817,1714137040281,-500.0,0.00011797,2]
[323617818,1714137040290,-879.56,0.00011797,2]
[323617819,1714137040299,-500.0,0.00011797,2]
[323617820,1714137040309,-500.0,0.00011797,2]
[323617821,1714137040318,-500.0,0.00011797,2]
[323617822,1714137040327,-237.03430079,0.00011797,2]
[323617823,1714137040336,-500.0,0.00011797,2]
[323617824,1714137040345,-500.0,0.00011797,2]
[323617825,1714137040355,-178.249581,0.00011797,2]
[323617826,1714137040364,-500.0,0.00011797,2]
[323617827,1714137040373,-500.0,0.00011797,2]
[323617828,1714137040386,-500.0,0.00011797,2]
[323617829,1714137040396,-500.0,0.00011797,2]
[323617830,1714137040405,-500.0,0.00011797,2]
[323617832,1714137040415,-501.22704601,0.00011797,2]
[323617834,1714137040424,-500.0,0.00011797,2]
[323617836,1714137040434,-500.0,0.00011797,2]
[323617838,1714137040443,-500.0,0.00011797,2]
[323617840,1714137040452,-501.68767671,0.00011797,2]
[323617842,1714137040461,-500.0,0.00011797,2]
[323617844,1714137040471,-817.19921199,0.00011797,2]
[323617847,1714137040496,-201.57078801,0.00011797,2]
[323617849,1714137040505,-500.0,0.00011797,2]
[323617851,1714137040514,-500.0,0.00011797,2]
[323617853,1714137040523,-500.0,0.00011797,2]
[323617855,1714137040532,-500.0,0.00011797,2]
[323617857,1714137040542,-500.0,0.00011797,2]
[323617859,1714137040551,-502.97001856,0.00011797,2]
[323617861,1714137040561,-602.57,0.00011797,2]
[323617863,1714137040570,-504.62125694,0.00011797,2]
[323617865,1714137040579,-501.0,0.00011797,2]
[323617866,1714137040589,-633.97,0.00011797,2]
[323617867,1714137040599,-500.0,0.00011797,2]
[323617868,1714137040608,-500.0,0.00011797,2]
[323617869,1714137040618,-500.0,0.00011797,2]
[323617870,1714137040627,-500.0,0.00011797,2]
[323617871,1714137040636,-500.0,0.00011797,2]
[323617872,1714137040646,-500.0,0.00011797,2]
[323617873,1714137040658,-500.0,0.00011797,2]
[323617874,1714137040667,-500.0,0.00011797,2]
[323617875,1714137040676,-500.0,0.00011797,2]
[323617876,1714137040686,-500.0,0.00011797,2]
[323617877,1714137040695,-500.0,0.00011797,2]
[323617878,1714137040704,-854.07,0.00011797,2]
[323617879,1714137040714,-500.0,0.00011797,2]
[323617880,1714137040727,-1139.88,0.00011797,2]
[323617881,1714137040736,-500.0,0.00011797,2]
[323617882,1714137040745,-500.0,0.00011797,2]
[323617883,1714137040755,-500.0,0.00011797,2]
[323617884,1714137040764,-500.0,0.00011797,2]
[323617885,1714137040774,-899.52,0.00011797,2]
[323617886,1714137040783,-500.0,0.00011797,2]
[323617887,1714137040793,-867.3,0.00011797,2]
[323617888,1714137040802,-1023.23,0.00011797,2]
[323617889,1714137040812,-500.0,0.00011797,2]
[323617890,1714137040822,-500.0,0.00011797,2]
[323617891,1714137040831,-560.3005182,0.00011797,2]
[323617892,1714137040841,-500.0,0.00011797,2]
[323617893,1714137040852,-500.0,0.00011797,2]
[323617894,1714137040861,-512.25,0.00011797,2]
[323617895,1714137040871,-500.0,0.00011797,2]
[323617896,1714137040880,-500.0,0.00011797,2]
[323617897,1714137040890,-786.41,0.00011797,2]
[323617898,1714137040900,-500.0,0.00011797,2]
[323617899,1714137040909,-500.0,0.00011797,2]
[323617900,1714137040918,-500.0,0.00011797,2]
[323617901,1714137040928,-806.69,0.00011797,2]
[323617902,1714137040938,-502.49270932,0.00011797,2]
[323617903,1714137040947,-500.0,0.00011797,2]
[323617904,1714137040957,-500.0,0.00011797,2]
[323617905,1714137040966,-500.0,0.00011797,2]
[323617906,1714137040978,-500.0,0.00011797,2]
[323617907,1714137040988,-500.0,0.00011797,2]
[323617908,1714137040997,-659.86,0.00011797,2]
[323617909,1714137041007,-701.29,0.00011797,2]
[323617910,1714137041017,-1064.82,0.00011797,2]
[323617911,1714137041026,-500.0,0.00011797,2]
[323617912,1714137041036,-500.0,0.00011797,2]
[323617913,1714137041045,-500.0,0.00011797,2]
[323617914,1714137041056,-500.0,0.00011797,2]
[323617915,1714137041065,-1049.71,0.00011797,2]
[323617916,1714137041075,-842.15,0.00011797,2]
[323617917,1714137041085,-500.0,0.00011797,2]
[323617918,1714137041094,-500.0,0.00011797,2]
[323617919,1714137041104,-500.0,0.00011797,2]
[323617920,1714137041113,-500.0,0.00011797,2]
[323617921,1714137041123,-500.0,0.00011797,2]
[323617922,1714137041132,-780.31,0.00011797,2]
[323617923,1714137041142,-500.0,0.00011797,2]
[323617924,1714137041152,-500.0,0.00011797,2]
[323617925,1714137041161,-500.0,0.00011797,2]
[323617926,1714137041171,-543.47247438,0.00011797,2]
[323617927,1714137041180,-500.0,0.00011797,2]
[323617928,1714137041189,-619.97,0.00011797,2]
[323617929,1714137041200,-500.0,0.00011797,2]
[323617930,1714137041212,-500.0,0.00011797,2]
[323617931,1714137041221,-500.0,0.00011797,2]
[323617932,1714137041233,-500.0,0.00011797,2]
[323617933,1714137041243,-500.0,0.00011797,2]
[323617934,1714137041252,-500.0,0.00011797,2]
[323617935,1714137041262,-911.37,0.00011797,2]
[323617936,1714137041273,-500.0,0.00011797,2]
[323617937,1714137041285,-2290.0,0.00011803,2]
[323617938,1714137041295,-5733.0,0.00011803,2]
[323617939,1714137041305,-5896.0,0.00011803,2]
[323617940,1714137041315,-921.484,0.00011803,2]
[323617941,1714137041324,-1054.0,0.00011803,2]
[323617942,1714137041335,-11253.67547962,0.0001187,2]
[323617943,1714137041345,-500.0,0.00011897,2]
[323617944,1714137041355,-273236.87168657,0.000119,2]
[323617945,1714137041377,-500.0,0.00011696,2]
[323617946,1714137041386,-3760.34955178,0.000119,2]
[323617947,1714137041398,-114828.64362822,0.000119,2]
[323617948,1714137041408,-1000.0,0.00011904,2]
[323617949,1714137041417,-500.0,0.00011904,2]
[323617950,1714137041427,-210.0,0.0001191,2]
[323617951,1714137041437,-11253.67547953,0.00011964,2]
[323617952,1714137041446,-500.0,0.0001197,2]
[323617953,1714137041456,-500.0,0.0001197,2]
[323617954,1714137041466,-500.0,0.0001197,2]
[323617955,1714137041477,-644.7,0.0001197,2]
[323617956,1714137041486,-500.0,0.0001197,2]
[323617957,1714137041496,-500.0,0.0001197,2]
[323617958,1714137041505,-500.0,0.0001197,2]
[323617959,1714137041514,-500.0,0.0001197,2]
[323617960,1714137041523,-500.0,0.0001197,2]
[323617961,1714137041533,-500.0,0.0001197,2]
[323617962,1714137041542,-500.0,0.0001197,2]
[323617963,1714137041551,-504.65911173,0.0001197,2]
[323617964,1714137041560,-500.0,0.0001197,2]
[323617965,1714137041570,-500.0,0.0001197,2]
[323617966,1714137041579,-500.0,0.0001197,2]
[323617967,1714137041588,-500.0,0.0001197,2]
[323617968,1714137041598,-500.0,0.0001197,2]
[323617969,1714137041607,-500.0,0.0001197,2]
[323617970,1714137041617,-500.0,0.0001197,2]
[323617971,1714137041626,-500.0,0.0001197,2]
[323617972,1714137041635,-500.0,0.0001197,2]
[323617973,1714137041645,-500.0,0.0001197,2]
[323617974,1714137041654,-500.0,0.0001197,2]
[323617975,1714137041664,-500.0,0.0001197,2]
[323617976,1714137041673,-500.0,0.0001197,2]
[323617977,1714137041683,-519.12507279,0.0001197,2]
[323617978,1714137041693,-500.0,0.0001197,2]
[323617979,1714137041702,-500.0,0.0001197,2]
[323617980,1714137041712,-578.94,0.0001197,2]
[323617981,1714137041722,-500.0,0.0001197,2]
[323617982,1714137041735,-500.0,0.0001197,2]
[323617983,1714137041745,-500.0,0.0001197,2]
[323617984,1714137041754,-500.0,0.0001197,2]
[323617985,1714137041764,-500.0,0.0001197,2]
[323617986,1714137041774,-500.0,0.0001197,2]
[323617987,1714137041783,-500.0,0.0001197,2]
[323617988,1714137041792,-500.0,0.0001197,2]
[323617989,1714137041802,-1472.51,0.0001197,2]
[323617990,1714137041812,-881.29,0.0001197,2]
[323617991,1714137041822,-500.0,0.0001197,2]
[323617992,1714137041832,-633.95,0.0001197,2]
[323617993,1714137041842,-500.0,0.0001197,2]
[323617994,1714137041851,-500.0,0.0001197,2]
[323617995,1714137041861,-500.0,0.0001197,2]
[323617996,1714137041870,-508.54,0.0001197,2]
[323617997,1714137041880,-500.0,0.0001197,2]
[323617998,1714137041889,-500.0,0.0001197,2]
[323617999,1714137041901,-763.82,0.0001197,2]
[323618000,1714137041911,-500.0,0.0001197,2]
[323618001,1714137041920,-500.0,0.0001197,2]
[323618002,1714137041931,-885.95,0.0001197,2]
[323618003,1714137041941,-548.28211566,0.0001197,2]
[323618004,1714137041950,-476.47490586,0.0001197,2]
[323618005,1714137041960,-500.0,0.0001197,2]
[323618006,1714137041969,-500.0,0.0001197,2]
[323618007,1714137041980,-500.0,0.0001197,2]
[323618008,1714137041990,-500.0,0.0001197,2]
[323618009,1714137041999,-500.0,0.0001197,2]
[323618010,1714137042009,-500.0,0.0001197,2]
[323618011,1714137042019,-500.0,0.0001197,2]
[323618012,1714137042028,-632.76126561,0.0001197,2]
[323618013,1714137042038,-500.0,0.0001197,2]
[323618014,1714137042047,-500.0,0.0001197,2]
[323618015,1714137042057,-500.0,0.0001197,2]
[323618016,1714137042066,-500.0,0.0001197,2]
[323618017,1714137042076,-500.0,0.0001197,2]
[323618018,1714137042085,-500.0,0.0001197,2]
[323618019,1714137042094,-500.0,0.0001197,2]
[323618020,1714137042104,-500.0,0.0001197,2]
[323618021,1714137042113,-218.86456303,0.0001197,2]
[323618022,1714137042123,-549.5,0.0001197,2]
[323618023,1714137042133,-521.87,0.0001197,2]
[323618024,1714137042143,-500.0,0.0001197,2]
[323618025,1714137042152,-500.0,0.0001197,2]
[323618026,1714137042161,-500.0,0.0001197,2]
[323618027,1714137042171,-503.5631437,0.0001197,2]
[323618028,1714137042181,-500.0,0.0001197,2]
[323618029,1714137042190,-500.0,0.0001197,2]
[323618030,1714137042200,-518.06187533,0.0001197,2]
[323618031,1714137042212,-500.0,0.0001197,2]
[323618032,1714137042222,-1036.44,0.0001197,2]
[323618033,1714137042232,-500.0,0.0001197,2]
[323618034,1714137042242,-500.0,0.0001197,2]
[323618035,1714137042251,-500.0,0.0001197,2]
[323618036,1714137042262,-500.0,0.0001197,2]
[323618037,1714137042271,-500.0,0.0001197,2]
[323618038,1714137042282,-500.0,0.0001197,2]
[323618039,1714137042293,-500.0,0.0001197,2]
[323618040,1714137042303,-500.0,0.0001197,2]
[323618041,1714137042312,-500.0,0.0001197,2]
[323618042,1714137042321,-500.0,0.0001197,2]
[323618043,1714137042331,-637.0,0.0001197,2]
[323618044,1714137042340,-500.0,0.0001197,2]
[323618045,1714137042350,-500.0,0.0001197,2]
[323618046,1714137042360,-500.0,0.0001197,2]
[323618047,1714137042370,-500.0,0.0001197,2]
[323618048,1714137042380,-500.0,0.0001197,2]
[323618049,1714137042390,-500.0,0.0001197,2]
[323618050,1714137042399,-577.46920651,0.0001197,2]
[323618051,1714137042408,-500.0,0.0001197,2]
[323618052,1714137042417,-500.0,0.0001197,2]
[323618053,1714137042426,-500.0,0.0001197,2]
[323618054,1714137042435,-500.0,0.0001197,2]
[323618055,1714137042444,-500.0,0.0001197,2]
[323618056,1714137042453,-500.0,0.0001197,2]
[323618057,1714137042463,-500.0,0.0001197,2]
[323618058,1714137042472,-500.0,0.0001197,2]
[323618059,1714137042483,-500.0,0.0001197,2]
[323618060,1714137042492,-500.0,0.0001197,2]
[323618061,1714137042501,-505.72431209,0.0001197,2]